Cogmind - Beta 13 @@@ ROGUE MODE // 2024.03.31 @ 21:00:48 Player: R.A.T Result: Destroyed by G-47 Trooper with Particle Gun Performance ------------- Evolutions (1) 500 Regions Visited (2) 400 Robots Destroyed (27) 135 Value Destroyed (686) 686 Prototype IDs (2) 40 Alien Tech Used (0) 0 Bonus (0) 0 TOTAL SCORE: 1761 Bonus ------- None Cogmind --------- Core Integrity 0/400 Matter 300/300 Energy 100/100 System Corruption 0% Temperature Cool (27) Movement Core (50) Location -9/Materials Parts ------- > --- POWER (1) -------- (None) > --- PROPULSION (2) --- (None) > --- UTILITY (4) ------ Targeting Computer > --- WEAPON (2) ------- Hammer > --- INVENTORY (5) ---- Aluminum Leg EM Pulse Gun Light Assault Rifle Peak State ------------ > --- POWER ------------ Light Ion Engine > --- PROPULSION ------- Wheel Wheel > --- UTILITY ---------- Salvage Targeting Computer Salvage Targeting Computer > --- WEAPON ----------- Assault Rifle Assault Rifle > --- INVENTORY -------- Aluminum Leg Aluminum Leg Light Assault Rifle [Rating: 9] Favorites ----------- Power Light Ion Engine Engine Light Ion Engine Propulsion Light Treads Treads Light Treads Leg Aluminum Leg Wheel Wheel Utility Salvage Targeting Computer Device Heat Sink Processor Salvage Targeting Computer Weapon Assault Rifle Energy Gun EM Pulse Gun Ballistic Gun Assault Rifle Impact Weapon Hammer Build | -11 -10 -9 ------- Run | Yrd Mat Mat Slots Evolved 2 | . . 2 Power . | . . . Propulsion . | . . . Utility 2 | . . 2 Weapon . | . . . Parts Attached 28 | 6 19 3 Power 3 | 1 2 . Engine 3 | 1 2 . Core . | . . . Reactor . | . . . Propulsion 7 | 2 5 . Treads 2 | . 2 . Leg 3 | . 3 . Wheel 2 | 2 . . Hover . | . . . Flight . | . . . Utility 7 | . 6 1 Device 3 | . 2 1 Storage . | . . . Processor 4 | . 4 . Hackware . | . . . Protection . | . . . Artifact . | . . . Weapon 11 | 3 6 2 Energy Gun 3 | . 3 . Energy Cannon . | . . . Ballistic Gun 6 | 3 2 1 Ballistic Cannon . | . . . Launcher . | . . . Special Weapon . | . . . Impact Weapon 2 | . 1 1 Slashing Weapon . | . . . Piercing Weapon . | . . . Special Melee Weapon . | . . . Unidentified Prototypes . | . . . Parts Lost 12 | . 6 6 Power 3 | . 2 1 Propulsion 3 | . 1 2 Utility 3 | . 1 2 Weapon 3 | . 2 1 Highest Loss Streak 6 | . 2 6 To Critical Strikes . | . . . Average Slot Usage (%) 90 | . 93 57 Engine 9 | . 9 5 Treads 14 | . 16 . Leg 9 | . 9 12 Wheel 1 | . 1 . Device 9 | . 9 12 Processor 16 | . 17 11 Energy Gun 8 | . 8 10 Ballistic Gun 15 | . 17 2 Impact Weapon 1 | . 1 2 Naked Turns . | . . . Heaviest Build 11 | 7 10 11 Greatest Support 40 | 20 40 20 Greatest Overweight (x) . | . . . Average Overweight (x) . | . . . Largest Inventory Capacity 5 | 5 5 5 Average Capacity 5 | 5 5 5 Most Carried 5 | 4 5 5 Average Carried 3 | 2 4 3 Final Capacity 5 | 5 5 5 Final Carried 5 | 3 5 3 Class Distribution -------------------- 100% | Mutant Dominant Class ---------------- Mutant | -10/Materials Mutant | -9/Materials Resources | -11 -10 -9 ----------- Run | Yrd Mat Mat Matter Collected 683 | 278 386 19 Remotely . | . . . Salvage Created 876 | 35 741 100 Parts 56 | 2 46 8 Haulers Intercepted . | . . . Recyclers Shooed . | . . . Parts Field Recycled . | . . . Retrieved Matter . | . . . Parts Self-Destructed . | . . . Prevented . | . . . Kills | -11 -10 -9 ------- Run | Yrd Mat Mat Combat Hostiles Destroyed 22 | 1 16 5 Melee 4 | . 2 2 Guns 16 | 1 13 2 Classes Destroyed 5 | 1 4 . Worker 1 | . 1 . Tunneler 1 | . 1 . Watcher 3 | . 3 . Swarmer 6 | . 3 3 Grunt 16 | 1 13 2 Best Kill Streak 4 | 1 4 4 Combat Bots Only 4 | 1 4 4 Max Kills in Single Turn 2 | 1 2 1 Gunslinging . | . . . Exploded . | . . . Melee 1 | . 1 1 Uniques/NPCs Destroyed . | . . . Combat | -11 -10 -9 -------- Run | Yrd Mat Mat Hostile Shots Fired 213 | 4 92 117 Missed 64 | . 27 37 Damage Taken 1767 | 45 939 783 Core 608 | 11 192 405 Absorbed by Shields . | . . . Core Remaining (%) 56 | 95 18 . Volleys Fired 59 | 3 46 10 Largest 2 | 2 2 2 Hottest 105 | 40 105 105 Shots Fired 111 | 6 89 16 Gun 111 | 6 89 16 Cannon . | . . . Launcher . | . . . Special . | . . . Kinetic 83 | 6 73 4 Thermal 8 | . 2 6 Explosive . | . . . Electromagnetic 20 | . 14 6 Robot Hit Streak 10 | 5 10 3 Robot Miss Streak 5 | . 5 5 Penetration Max . | . . . Secondary Targets 1 | . 1 . Max Gunslinging Chain 1 | . 1 . Shots Hit Robots 80 | 5 58 17 Core Hits 49 | 2 31 16 Critical Kills 1 | . 1 . Critical Parts Destroyed 6 | . 4 2 Critical Strikes 7 | . 5 2 Destroy 1 | . 1 . Smash 6 | . 4 2 Melee Attacks 23 | . 11 12 Impact 23 | . 11 12 Slashing . | . . . Piercing . | . . . Sneak Attacks . | . . . Combat Hostiles . | . . . Follow-up Attacks . | . . . Damage Inflicted 1328 | 65 951 312 Guns 895 | 65 709 121 Cannons . | . . . Explosions . | . . . Melee 415 | . 235 180 Ramming 18 | . 7 11 Kinetic 674 | 65 585 24 Thermal 79 | . 25 54 Explosive . | . . . Electromagnetic 142 | . 99 43 Impact 415 | . 235 180 Slashing . | . . . Piercing . | . . . Highest Corruption . | . . . Average Corruption . | . . . Corruption Purged . | . . . Corruption Blocked . | . . . Overload Shots . | . . . Overflow Damage 130 | . 77 53 Projectiles . | . . . Explosions . | . . . Melee 130 | . 77 53 Knockbacks 2 | . . 2 Impact 2 | . . 2 Kinetic . | . . . Secondary . | . . . Self-Inflicted Damage 2 | . . 2 Shots . | . . . Rammed 1 | . . 1 Targets Rammed 11 | . 1 10 Kicked 10 | . 1 9 Crushed . | . . . Highest Temperature 48 | . 19 48 Average Temperature 12 | . 9 18 Received Heat Transfer 681 | 24 435 222 Siege Activations . | . . . Robots Corrupted . | . . . Combat Hostiles . | . . . Parts Fried 7 | . 6 1 Impact Corruptions 5 | . 3 2 Robots Melted . | . . . Combat Hostiles . | . . . Parts Melted . | . . . Heat Transferred 90 | . 30 60 Parts Sabotaged . | . . . Parts Stolen . | . . . Parts Stripped . | . . . Power Chain Reactions . | . . . Alert | -11 -10 -9 ------- Run | Yrd Mat Mat Peak Influence 196 | 20 196 110 Initial 35 | . 13 35 Average 92 | 2 101 57 Maximum Alert Level . | . . . Low Security (%) 100 | 100 100 100 Level 1 . | . . . Level 2 . | . . . Level 3 . | . . . Level 4 . | . . . Level 5 . | . . . High Security . | . . . Max Security . | . . . Squads Dispatched 6 | . 5 1 Investigation 1 | . 1 . Extermination . | . . . Reinforcement 5 | . 4 1 Assault . | . . . Garrison . | . . . Intercept . | . . . Searches Triggered . | . . . Construction Impeded . | . . . Haulers Reinforced . | . . . Active Scanning Responses . | . . . Cargo Convoy Interrupts . | . . . Stealth | -11 -10 -9 --------- Run | Yrd Mat Mat Distress Signals 2 | . . 2 Communications Jammed . | . . . Distress Signals . | . . . Times Spotted 39 | 1 26 12 Peak Tracking Total 5 | 1 3 5 Tactical Retreats 2 | . 1 1 Traps | -11 -10 -9 ------- Run | Yrd Mat Mat Traps Triggered 2 | . 2 . Indirectly . | . . . Trap Hack Attempts . | . . . Triggered . | . . . Disarmed . | . . . Reprogrammed . | . . . Reused . | . . . Traps Extracted . | . . . Installed . | . . . Triggered . | . . . Machines | -11 -10 -9 ---------- Run | Yrd Mat Mat Machines Disabled . | . . . Max in Single Turn . | . . . Machines Repaired . | . . . Machines Dismantled . | . . . Machines Sabotaged . | . . . Overloaded Fab Kills . | . . . Hacking | -11 -10 -9 --------- Run | Yrd Mat Mat Machines Accessed 7 | . 6 1 Terminals 5 | . 4 1 Fabricators . | . . . Repair Stations . | . . . Recycling Units 2 | . 2 . Scanalyzers . | . . . Garrison Access . | . . . Total Hacks 22 | . 20 2 Successful 13 | . 13 . Failed 9 | . 7 2 Catastrophic 2 | . 1 1 Database Lockouts . | . . . Manual 3 | . 2 1 Terminals 18 | . 16 2 Fabricators . | . . . Repair Stations . | . . . Recycling Units 4 | . 4 . Scanalyzers . | . . . Garrison Access . | . . . Terminal Hacks 9 | . 9 . Record 4 | . 4 . Prototype ID Bank 1 | . 1 . Alert Level 1 | . 1 . Locate Traps 1 | . 1 . Zone Layout 2 | . 2 . Fabricator Hacks . | . . . Repair Station Hacks . | . . . Recycling Unit Hacks 4 | . 4 . Recycle Component 1 | . 1 . Process 1 | . 1 . Retrieve Matter 2 | . 2 . Scanalyzer . | . . . Garrison Access Hacks . | . . . Unauthorized Hacks . | . . . Terminals . | . . . Fabricators . | . . . Repair Stations . | . . . Recycling Units . | . . . Scanalyzers . | . . . Garrison Access . | . . . Data Cores Recovered . | . . . Used . | . . . Hacking Detections 5 | . 4 1 Full Trace Events 2 | . 1 1 Feedback Events . | . . . Feedback Blocked . | . . . Robot Schematics Acquired . | . . . Robots Built . | . . . Authchips . | . . . Time . | . . . Total Robot Build Rating . | . . . Part Schematics Acquired . | . . . Parts Built . | . . . Authchips . | . . . Time . | . . . Total Part Build Rating . | . . . Parts Repaired . | . . . Time . | . . . Parts Recycled 1 | . 1 . Recycled Matter 141 | . 141 . Retrieved Matter 141 | . 141 . Retrieved Components . | . . . Parts Scanalyzed . | . . . Part Schematics Acquired . | . . . Parts Damaged . | . . . Bothacking | -11 -10 -9 ------------ Run | Yrd Mat Mat Used RIF Installer . | . . . Robots Hacked . | . . . Non-combat . | . . . Combat . | . . . Robot Hacks Applied . | . . . Relay Couplers Released . | . . . Fabnet Peak Effective % . | . . . Robots Rewired . | . . . Allies Hacked . | . . . Hacks Repelled . | . . . Allies | -11 -10 -9 -------- Run | Yrd Mat Mat Total Allies . | . . . Largest Group . | . . . Highest-Rated Group . | . . . Highest-Rated Ally . | . . . Total Orders . | . . . Ally Attacks . | . . . Total Damage . | . . . Kills . | . . . Allies Corrupted . | . . . Allies Melted . | . . . Intel | -11 -10 -9 ------- Run | Yrd Mat Mat Robot Analysis Total . | . . . Derelict Logs Recovered . | . . . Drone Launches . | . . . Drone Recoveries . | . . . Exploration | -11 -10 -9 ------------- Run | Yrd Mat Mat Turns Passed 1444 | 79 1234 131 Spaces Moved 870 | 75 741 54 Core 28 | 17 . 11 Treads 378 | . 378 . Legs 360 | . 317 43 Wheels 104 | 58 46 . Hover . | . . . Flight . | . . . Fastest Speed 50 | 50 80 50 Average Speed 130 | 73 137 105 Slowest Speed 160 | 80 160 120 Overloaded Moves . | . . . Propulsion Burnouts . | . . . Robots Hopped . | . . . Cave-ins Triggered . | . . . Exploration Rate (%) 33 | 7 84 10 Regions Visited 2 Branch Regions . Pre-discovered Areas . | . . . Known Exits Taken . | . . . Unknown Exits Taken 2 | 1 1 . Scrap Searched . | . . . Spaces Dug . | . . . Terrain Destroyed . | . . . Melee . | . . . Projectile . | . . . AOE . | . . . Terrain Rammed . | . . . Walls Destroyed . | . . . Machines Disabled . | . . . Actions | -11 -10 -9 --------- Run | Yrd Mat Mat Total 1035 | 92 852 91 Wait 1 | 1 . . Move 868 | 74 740 54 Hop . | . . . Pick Up 30 | 8 22 . Fast Attach 2 | . 2 . Attach 20 | 5 12 3 Detach 3 | . 2 1 Swap 6 | 1 5 . Drop 12 | . 11 1 Fire 59 | 3 46 10 Melee 23 | . 11 12 Ram 1 | . . 1 Kick 10 | . 1 9 Crush . | . . . Escape Stasis . | . . . Rewire . | . . . Trap . | . . . Miscellaneous . | . . . Route ------- -11/Scrapyard -10/Materials (discovered 4 exits: *Mat x3 / [*Min]) -9/Materials History --------- Turn | Location | Event 2 | -11/Scrapyard | Met Revision 17 61 | -11/Scrapyard | Discovered new exit (range 8) 80 | -11/Scrapyard | Entered Materials 136 | -10/Materials | Discovered new exit (range 12) 314 | -10/Materials | Build established: Mutant 431 | -10/Materials | Discovered new exit (range 12) 525 | -10/Materials | Core integrity fell below 50% 612 | -10/Materials | Discovered new exit (range 15) 811 | -10/Materials | Discovered new exit (range 15) 931 | -10/Materials | Core integrity fell below 20% 1314 | -10/Materials | Entered another Materials area 1314 | -9/Materials | Evolved 2 slots: Utility x2 1399 | -9/Materials | Core integrity fell below 50% 1423 | -9/Materials | Core integrity fell below 20% 1445 | -9/Materials | Destroyed by G-47 Trooper with Particle Gun Last Messages --------------- 01403_ G-34 Mercenary destroyed. 01405_ Acquired 12 matter. 01407_ Acquired 1 matter. 01418_ S-10 Pest suffers critical hit (Smash). 01418_ Destroyed Flight Unit. 01418_ S-10 Pest system corrupted by crushing effect. 01418_ Lgt. Ion Engine fried. 01418_ S-10 Pest destroyed. 01420_ Lgt. Assault Rifle destroyed. 01424_ G-47 Trooper knocked back. 01432_ S-10 Pest destroyed. 01433_ Acquired 5 matter. 01443_ S-10 Pest suffers critical hit (Smash). 01443_ Destroyed Flight Unit. 01443_ S-10 Pest system corrupted by crushing effect. 01443_ S-10 Pest misfires. 01444_ S-10 Pest system terminally corrupted. 01445_ Critical hit (Burn: +37). Map ----- +----------------------------------------------------+ | ?????????????????????????????????????????????????? | | ?????????????????????????????????????????????????? | | ?????????????????????????????????????????????????? | | ?????????????????????????????????????????????????? | | ?????????????????????????????????????????????????? | | ?????????????????????????????????????????????????? | | ?????????????????????????????????????????????????? | | ?????????????????????????????????????????????????? | | ?????????????????????????????????????????????????? | | ?????????????????????????????????????????????????? | | ?????????????????????????????????????????????????? | | ?????????????????????????????????????????????????? | | ?????????????????????????????????????????????????? | | ?????????????????????????????????????????????????? | | ?????????????????????????????????????????????????? | | ?????????????????????????????????????????????????? | | ?????????????????????????????????????????????????? | | ?????????????????###########?????????????????????? | | ?????????????????# #?????????????????????? | | ?????????????????# #?????????????????????? | | ?????????????????# #?????????????????????? | | ?????????????????# #?????????????????????? | | ?????????????????# #?????????????????????? | | ?????????????????# #?????????????????????? | | ?????????????????# ! [#?????????????????????? | | ???#######???????# @%#?????????????????????? | | ???# #################g####### #???????????? | | ???# " %"%[[ #???????????? | | ???# "T " #???????????? | | ???# %%* #???????????? | | ???# ##########%#############+####???????????? | | ##### ######## #???????????????????????? | | # # # #???????????????????????? | | " # # """ # #???????????????????????? | | T + + """ # [ #???????????????????????? | | " # # """ # #???????????????????????? | | # # # #???????????????????????? | | ! # # # #???????????????????????? | | ############ #???????????????????????? | | = #??????????###########???????????????????????? | | #????????????????????????????????????????????? | | #####????????????????????????????????????????????? | | ?????????????????????????????????????????????????? | | ?????????????????????????????????????????????????? | | ?????????????????????????????????????????????????? | | ?????????????????????????????????????????????????? | | ?????????????????????????????????????????????????? | | ?????????????????????????????????????????????????? | | ?????????????????????????????????????????????????? | | | +----------------------------------------------------+ Best States ------------- Heat Dissipation 38 Energy Generation 10 Energy Capacity 250 Matter Stores 300 Matter Capacity 300 Sight Range 18 Robot Scan Range 14 Terrain Scan Density 10 ECM Strength 1 Evasion (%) 55 Targeting Accuracy 5 Recoil Reduction 2 Salvage Targeting 2 Item Schematics ----------------- None Robot Schematics ------------------ None Fabricated ------------ Nothing Alien Tech Used ----------------- None Achievements -------------- Crack Shot Challenges ------------ None Game ------ Seed GuidanceAssaultHumpback Manual? 0 Play Time 00:23:48 Cumulative 0.8 hours Start 2024.03.31 @ 20:39:00 End 2024.03.31 @ 21:00:48 Sessions 1 Manual Loads 0 Difficulty Rogue Special Mode None Game No. 2 Rogue 2 Adventurer 0 Explorer 0 Win Type - Total 0 Types 0/0/0/0/0/0/0/0/0 Lore% 0 Gallery% 3 Achievement% 2 Wizard Run 0 Options --------- Layout 1 ASCII 0 Keyboard 0 Movement Mouse Keybinds 0 Fullscreen 1 Font 24/Smallcaps Map View 50x35 Zoom Use 0% Tactical HUD 1 Map Filters NONE Filters NONE Steam 1 RUN: b6cfbb9f-e003-4cea-8cd7-f9611d3c695c